bitfinex/quotes_BTCUSD_20250224
["timestamp","ask_amount","ask_price","bid_price","bid_amount"]
[1740411829996,0.76025724,94293.0,94292.0,0.0008508]
[1740411830218,0.76725724,94293.0,94292.0,0.0008508]
[1740411830677,0.76025724,94293.0,94292.0,0.0008508]
[1740411831132,0.634978,94293.0,94292.0,0.0008508]
[1740411831583,0.640978,94293.0,94292.0,0.0008508]
[1740411831834,0.490978,94293.0,94292.0,0.0008508]
[1740411832034,0.495978,94293.0,94292.0,0.0008508]
[1740411832746,0.59862369,94293.0,94292.0,0.0008508]
[1740411833296,0.59362369,94293.0,94292.0,0.0008508]
[1740411833510,0.58762369,94293.0,94292.0,0.0008508]
[1740411833725,0.59362369,94293.0,94292.0,0.0008508]
[1740411834465,0.58762369,94293.0,94292.0,0.0008508]
[1740411834679,0.73762369,94293.0,94292.0,0.0008508]
[1740411835854,0.74362369,94293.0,94292.0,0.0008508]
[1740411836096,0.74162369,94293.0,94292.0,0.0008508]
[1740411836348,0.74362369,94293.0,94292.0,0.0008508]
[1740411837286,0.73962369,94293.0,94292.0,0.0008508]
[1740411837507,0.84226938,94293.0,94292.0,0.0008508]
[1740411837714,0.84626938,94293.0,94292.0,0.0008508]
[1740411837923,0.74362369,94293.0,94292.0,0.0008508]
[1740411840249,0.74162369,94293.0,94292.0,0.0008508]
[1740411840455,0.73762369,94293.0,94292.0,0.0008508]
[1740411840683,0.74162369,94293.0,94292.0,0.0008508]
[1740411841268,0.73762369,94293.0,94292.0,0.0008508]
[1740411841701,0.3259,94293.0,94292.0,0.0008508]
[1740411841990,0.0156602,94300.0,94285.0,0.0006192]
[1740411842221,0.159071,94298.0,94285.0,0.0006192]
[1740411842474,0.0156602,94300.0,94285.0,0.10326489]
[1740411842475,0.0017002,94293.0,94285.0,0.10326489]
[1740411842957,0.0017002,94293.0,94285.0,0.0006192]
[1740411842958,0.00185601,94292.0,94285.0,0.0006192]
[1740411843206,0.159083,94290.0,94285.0,0.0006192]
[1740411843418,0.0017002,94293.0,94285.0,0.0006192]
[1740411844622,0.0017002,94293.0,94285.0,0.10326489]
[1740411844837,0.0017002,94293.0,94286.0,0.10264569]
[1740411845011,0.0017002,94293.0,94291.0,0.159081]
[1740411845217,0.0017002,94293.0,94291.0,0.10264569]
[1740411845917,0.0017002,94293.0,94285.0,0.2127392]
[1740411845918,0.0017002,94293.0,94285.0,0.0006192]
[1740411846087,0.0018561,94292.0,94285.0,0.0006192]
[1740411846532,0.0017002,94293.0,94285.0,0.0006192]
[1740411847696,0.0017002,94293.0,94286.0,0.10264569]
[1740411848131,0.0017002,94293.0,94285.0,0.0006192]
[1740411850987,0.1607792,94293.0,94285.0,0.0006192]
[1740411851157,0.0017002,94293.0,94285.0,0.0006192]
[1740411851513,0.15909,94286.0,94285.0,0.0006192]
[1740411851715,0.212112,94290.0,94285.0,0.0006192]
[1740411852164,0.0017002,94293.0,94285.0,0.0006192]
[1740411852332,0.159085,94289.0,94285.0,0.0006192]
[1740411852548,0.0017002,94293.0,94285.0,0.0006192]
[1740411853354,0.1607782,94293.0,94285.0,0.0006192]
[1740411853604,0.001,94290.0,94285.0,0.0006192]
[1740411853946,0.0017002,94293.0,94285.0,0.0006192]
[1740411855019,0.15909,94286.0,94285.0,0.0006192]
[1740411855448,0.63499,94286.0,94285.0,0.0006192]
[1740411859260,0.63599,94286.0,94285.0,0.0006192]
[1740411860810,0.4769,94286.0,94285.0,0.0006192]
[1740411861013,0.63599,94286.0,94285.0,0.0006192]
[1740411865181,0.31009,94286.0,94285.0,0.0006192]
[1740411867437,0.151,94286.0,94285.0,0.0006192]
[1740411867957,0.31009,94286.0,94285.0,0.0006192]
[1740411868422,0.001,94286.0,94285.0,0.0006192]
[1740411869280,0.16009,94286.0,94285.0,0.0006192]
[1740411869726,0.16194636,94286.0,94285.0,0.0006192]
[1740411870368,0.16094636,94286.0,94285.0,0.0006192]
[1740411870576,0.16194636,94286.0,94285.0,0.0006192]
[1740411871186,0.16094636,94286.0,94285.0,0.0006192]
[1740411871544,0.16194636,94286.0,94285.0,0.0006192]
[1740411871774,0.001,94286.0,94285.0,0.0006192]
[1740411871995,0.16009,94286.0,94285.0,0.0006192]
[1740411872209,0.001,94286.0,94285.0,0.0006192]
[1740411872479,0.16009,94286.0,94285.0,0.0006192]
[1740411872682,0.001,94286.0,94285.0,0.0006192]
[1740411872895,0.16009,94286.0,94285.0,0.0006192]
[1740411875261,0.001,94286.0,94285.0,0.0006192]
[1740411876325,0.16009,94286.0,94285.0,0.0006192]
[1740411876537,0.001,94286.0,94285.0,0.0006192]
[1740411881017,0.16009,94286.0,94285.0,0.0006192]
[1740411881232,0.001,94286.0,94285.0,0.0006192]
[1740411881443,0.1619462,94286.0,94285.0,0.0006192]
[1740411881861,0.16009,94286.0,94285.0,0.0006192]
[1740411886644,0.16009,94286.0,94285.0,0.00015352]
[1740411886877,0.001,94286.0,94285.0,0.00015352]
[1740411887095,0.16009,94286.0,94285.0,0.00015352]
[1740411887554,0.001,94286.0,94285.0,0.00015352]
[1740411887755,0.16194623,94286.0,94285.0,0.00015352]
[1740411888772,0.16094623,94286.0,94285.0,0.00015352]
[1740411888977,0.16294623,94286.0,94285.0,0.00015352]
[1740411889312,0.16094623,94286.0,94285.0,0.00015352]
[1740411889944,0.00185623,94286.0,94285.0,0.00015352]
[1740411890113,0.0017004,94288.0,94285.0,0.00015352]
[1740411890525,0.003,94286.0,94285.0,0.00015352]
[1740411891103,0.002,94286.0,94285.0,0.00015352]
[1740411891583,0.0017004,94288.0,94285.0,0.10279921]
[1740411891833,0.0017004,94288.0,94287.0,0.159088]
[1740411892068,0.0017004,94288.0,94287.0,0.26073369]
[1740411892307,0.0017004,94288.0,94287.0,0.25973369]
[1740411892575,0.0017004,94288.0,94287.0,0.34063369]
[1740411892831,0.0017004,94288.0,94287.0,0.35107063]
[1740411893035,0.0027004,94288.0,94287.0,0.35107063]
[1740411893463,0.0027004,94288.0,94287.0,0.38100751]
[1740411893866,0.0037004,94288.0,94287.0,0.38100751]
[1740411894068,0.0037004,94288.0,94287.0,0.35107063]
[1740411894516,0.0027004,94288.0,94287.0,0.35107063]
[1740411894745,0.0037004,94288.0,94287.0,0.35107063]
[1740411895752,0.0037004,94288.0,94286.0,0.031873]
[1740411895753,0.0027004,94288.0,94286.0,0.031873]
[1740411895976,0.0027004,94288.0,94285.0,0.00015352]
[1740411896185,0.1627874,94288.0,94287.0,0.001]
[1740411896403,0.15909,94286.0,94285.0,0.00015352]
[1740411897906,0.16009,94286.0,94285.0,0.00015352]
[1740411898317,0.16009,94286.0,94285.0,0.00215352]
[1740411898531,0.15909,94286.0,94285.0,0.00215352]
[1740411898727,0.15909,94286.0,94285.0,0.00015352]
[1740411898948,0.3119463,94286.0,94285.0,0.00015352]
[1740411899155,0.39179,94286.0,94285.0,0.00015352]
[1740411899786,0.39279,94286.0,94285.0,0.00015352]
[1740411904099,0.3944892,94286.0,94285.0,0.00015352]
[1740411905070,0.3127892,94286.0,94285.0,0.00015352]
[1740411907406,0.0036992,94286.0,94285.0,0.00015352]
[1740411908473,0.16464541,94286.0,94285.0,0.00015352]
[1740411908770,0.0036992,94286.0,94285.0,0.00015352]
[1740411908973,0.1627892,94286.0,94285.0,0.00015352]
[1740411909396,0.1617892,94286.0,94285.0,0.00015352]
[1740411909616,0.16364552,94286.0,94285.0,0.00015352]
[1740411909831,0.16264552,94286.0,94285.0,0.00015352]
[1740411910254,0.16364552,94286.0,94285.0,0.00015352]
[1740411910759,0.16264552,94286.0,94285.0,0.00215352]
[1740411910972,0.16264552,94286.0,94285.0,0.00315352]
[1740411911512,0.1607892,94286.0,94285.0,0.00315352]
[1740411912436,0.0016992,94286.0,94285.0,0.00315352]
[1740411912637,0.1607892,94286.0,94285.0,0.00315352]
[1740411912838,0.0016992,94286.0,94285.0,0.00315352]
[1740411916486,0.0016992,94286.0,94285.0,0.31439121]
[1740411917138,0.0016992,94286.0,94285.0,0.32926153]
[1740411917392,0.0016992,94286.0,94285.0,0.55956153]
[1740411917649,0.0016992,94286.0,94285.0,0.55756153]
[1740411917893,0.0026992,94286.0,94285.0,0.56256153]
[1740411918889,0.0016992,94286.0,94285.0,0.55856153]
[1740411919105,0.0026992,94286.0,94285.0,0.56356153]
[1740411919318,0.0026992,94286.0,94285.0,0.57456153]
[1740411919563,0.0026992,94286.0,94285.0,0.24284821]
[1740411919781,0.0036992,94286.0,94285.0,0.40694021]
[1740411920277,0.0036992,94286.0,94285.0,0.24784821]
[1740411920537,0.0036992,94286.0,94285.0,0.27614021]
[1740411920776,0.0016992,94286.0,94285.0,0.26614021]
[1740411921030,0.0026992,94286.0,94285.0,0.27214021]
[1740411921254,0.0036992,94286.0,94285.0,0.27914021]
[1740411924757,0.00229388,94286.0,94285.0,0.27914021]
[1740411925219,0.00229388,94286.0,94285.0,0.42914021]
[1740411925452,0.00229388,94286.0,94285.0,0.53737709]
[1740411925959,0.00229388,94286.0,94285.0,0.50744021]
[1740411928676,0.00229388,94286.0,94285.0,0.5073373]
[1740411928875,0.00229388,94286.0,94285.0,0.53727418]
[1740411929657,1e-08,94288.0,94287.0,0.159088]
[1740411929894,1e-08,94288.0,94287.0,0.26173369]
[1740411930149,1e-08,94288.0,94287.0,0.29167057]
[1740411930403,1e-08,94288.0,94287.0,0.26173369]
[1740411931405,0.00100001,94288.0,94287.0,0.26773369]
[1740411931646,0.00100001,94288.0,94287.0,0.10864569]
[1740411932182,0.00200001,94288.0,94287.0,0.11464569]
[1740411932444,0.16108701,94288.0,94287.0,0.012]
[1740411932692,0.08330001,94288.0,94287.0,0.012]
[1740411932938,0.00200001,94288.0,94287.0,0.11464569]
[1740411933187,0.00200001,94288.0,94287.0,0.27373369]
[1740411933433,0.00200001,94288.0,94287.0,0.10864569]
[1740411933434,0.00100001,94288.0,94287.0,0.10864569]
[1740411934076,0.00100001,94288.0,94287.0,0.11364569]
[1740411934502,0.00100001,94288.0,94287.0,0.011]
[1740411934913,1e-08,94288.0,94287.0,0.005]
[1740411935348,0.00100001,94288.0,94287.0,0.009]
[1740411936530,0.16008701,94288.0,94287.0,0.009]
[1740411936946,0.28458701,94288.0,94287.0,0.009]
[1740411937167,0.8631327,94288.0,94287.0,0.009]
[1740411937369,0.86330813,94288.0,94287.0,0.009]
[1740411937782,0.86330813,94288.0,94287.0,0.004]
[1740411938188,0.30909,94286.0,94285.0,5.061e-05]
[1740411938416,0.3936021,94286.0,94285.0,5.061e-05]
[1740411939624,0.39377753,94286.0,94285.0,5.061e-05]
[1740411939830,0.39577753,94286.0,94285.0,5.061e-05]
[1740411940787,0.39677753,94286.0,94285.0,5.061e-05]
[1740411942434,0.72267753,94286.0,94285.0,5.061e-05]
[1740411943114,0.72267753,94286.0,94285.0,6.1e-07]
[1740411943115,1.01940976,94286.0,94285.0,6.1e-07]
[1740411943334,1.06800976,94286.0,94285.0,6.1e-07]
[1740411943561,0.2853,94280.0,94279.0,0.0006749]
[1740411943811,0.55266197,94280.0,94279.0,0.0006749]
[1740411944852,0.88256197,94280.0,94279.0,0.0006749]
[1740411945991,0.88756197,94280.0,94279.0,0.0006749]
[1740411946633,0.94337113,94280.0,94279.0,0.0006749]
[1740411946846,0.88756197,94280.0,94279.0,0.0006749]
[1740411949198,0.86802112,94280.0,94279.0,0.0006749]
[1740411949405,0.87502112,94280.0,94279.0,0.0006749]
[1740411949607,0.77237543,94280.0,94279.0,0.0006749]
[1740411949811,0.87502112,94280.0,94279.0,0.0006749]
[1740411950237,0.88956197,94280.0,94279.0,0.0006749]
[1740411950668,0.88556197,94280.0,94279.0,0.0006749]
[1740411951082,0.89056197,94280.0,94279.0,0.0006749]
[1740411951751,0.97194976,94280.0,94279.0,0.0006749]
[1740411952076,0.89056197,94280.0,94279.0,0.0006749]
[1740411952687,0.89226137,94280.0,94279.0,0.0015246]
[1740411956701,0.87772052,94280.0,94279.0,0.0015246]
[1740411956961,0.64637483,94280.0,94279.0,0.0015246]
[1740411957686,0.63437483,94280.0,94279.0,0.0015246]
[1740411958158,0.64437483,94280.0,94279.0,0.0015246]
[1740411958353,0.64037483,94280.0,94279.0,0.0015246]
[1740411958530,0.63437483,94280.0,94279.0,0.0015246]
[1740411958735,0.63937483,94280.0,94279.0,0.0015246]
[1740411960723,0.00687483,94280.0,94279.0,0.0015246]
[1740411961391,0.16597483,94280.0,94279.0,0.0015246]
[1740411962016,0.00687483,94280.0,94279.0,0.0015246]
[1740411962237,0.16597483,94280.0,94279.0,0.0015246]
[1740411963070,0.31597483,94280.0,94279.0,0.0015246]
[1740411963467,0.41862052,94280.0,94279.0,0.0015246]
[1740411963670,0.49632052,94280.0,94279.0,0.0015246]
[1740411966055,0.51086137,94280.0,94279.0,0.0015246]
[1740411966266,0.83676137,94280.0,94279.0,0.0015246]
[1740411966485,0.96337099,94280.0,94279.0,0.0015246]
[1740411966916,0.88386137,94280.0,94279.0,0.0015246]
[1740411967360,0.88086137,94280.0,94279.0,0.0015246]
[1740411967612,0.88586137,94280.0,94279.0,0.0015246]
[1740411967872,0.89086137,94280.0,94279.0,0.0015246]
[1740411970293,0.91086102,94280.0,94279.0,0.0015246]
[1740411970540,1.01350671,94280.0,94279.0,0.0015246]
[1740411970773,0.309129,94263.0,94262.0,0.014315]
[1740411971017,0.309141,94256.0,94255.0,0.19856736]
[1740411971256,0.41196212,94256.0,94255.0,0.19856736]
[1740411971768,0.42650297,94256.0,94255.0,0.19756736]
[1740411972242,0.43778262,94256.0,94255.0,0.19756736]
[1740411973633,0.44078262,94256.0,94255.0,0.19756736]
[1740411973878,0.44178262,94256.0,94255.0,0.19756736]
[1740411975004,0.76768262,94256.0,94255.0,0.19756736]
[1740411975842,0.76768262,94256.0,94255.0,0.19841706]
[1740411984428,0.86753329,94256.0,94255.0,0.19841706]
[1740411984641,0.94603329,94256.0,94255.0,0.19841706]
[1740411984863,0.94603329,94256.0,94227.0,2.0]
[1740411984864,0.01999965,94252.0,94227.0,0.02741355]
[1740411985072,0.159188,94228.0,94227.0,0.02741355]
[1740411985292,0.58773369,94228.0,94227.0,0.02741355]
[1740411985498,0.485088,94228.0,94227.0,0.02741355]
[1740411985706,0.48526343,94228.0,94227.0,0.02741355]
[1740411987792,0.32607543,94228.0,94227.0,0.02741355]
[1740411988223,0.48526343,94228.0,94227.0,0.02741355]
[1740411989037,0.58790912,94228.0,94227.0,0.02741355]
[1740411989607,0.73790912,94228.0,94227.0,0.02741355]
[1740411990175,0.73990912,94228.0,94227.0,0.02741355]
[1740411990420,0.77240943,94228.0,94227.0,0.02741355]
[1740411990681,0.62776228,94228.0,94222.0,1.50126844]
[1740411990929,0.46249429,94223.0,94222.0,0.6301269]
[1740411991154,0.72609998,94223.0,94222.0,0.62995147]
[1740411991391,1.04103998,94223.0,94222.0,0.62995147]
[1740411991625,1.04103998,94223.0,94222.0,0.62986087]
[1740411991879,1.04103998,94223.0,94222.0,0.34168527]
[1740411991880,1.09859998,94223.0,94222.0,0.34168527]
[1740411992119,1.09859998,94223.0,94222.0,0.32040985]
[1740411992371,1.09859998,94223.0,94175.0,0.08]
[1740411992372,0.02797036,94188.0,94160.0,0.0008497]
[1740411992621,0.159269,94180.0,94160.0,0.0008497]
[1740411992866,0.0466,94188.0,94160.0,0.0008497]
[1740411992867,0.15,94181.0,94160.0,0.0008497]
[1740411993109,0.31112741,94180.0,94160.0,0.0008497]
[1740411993352,0.15,94180.0,94160.0,0.0008497]
[1740411993586,0.00185847,94184.0,94160.0,0.0008497]
[1740411993837,0.159265,94183.0,94166.0,0.01470103]
[1740411994045,0.15,94184.0,94166.0,0.01470103]
[1740411994249,0.00185839,94183.0,94166.0,0.01470103]
[1740411994762,0.159268,94181.0,94166.0,0.01470103]
[1740411994996,0.005,94180.0,94166.0,0.01470103]
[1740411995535,0.00185839,94179.0,94166.0,0.01470103]
[1740411995829,0.16454085,94178.0,94166.0,0.01470103]
[1740411996110,0.15,94178.0,94166.0,0.01470103]
[1740411996590,0.10450408,94177.0,94166.0,0.01470103]
[1740411996826,0.21237,94175.0,94166.0,0.01470103]
[1740411997048,0.00185858,94174.0,94166.0,0.01470103]
[1740411997478,0.32775858,94174.0,94166.0,0.01470103]
[1740411997681,0.159291,94167.0,94166.0,0.01470103]
[1740411997886,0.159291,94167.0,94166.0,0.01461041]
[1740411998737,0.26193669,94167.0,94166.0,0.01461041]
[1740411998946,0.27647754,94167.0,94166.0,0.01461041]
[1740411999379,0.85502323,94167.0,94166.0,0.01461041]
[1740411999644,0.85502323,94167.0,94158.0,0.00039619]
[1740411999645,0.01999965,94165.0,94158.0,0.00039619]
[1740411999869,0.32385585,94153.0,94152.0,0.06676055]
[1740412000071,0.55490154,94153.0,94132.0,0.0008499]
[1740412000282,0.15,94147.0,94100.0,4.6568701]
[1740412000501,0.16454085,94142.0,94100.0,4.6568701]
[1740412000743,0.15,94140.0,94100.0,4.6568701]
[1740412000973,0.15,94138.0,94101.0,0.10264569]
[1740412001230,0.3277594,94137.0,94103.0,0.33982361]
[1740412001453,0.00185927,94136.0,94109.0,0.159389]
[1740412001674,0.00185927,94136.0,94112.0,0.159384]
[1740412001886,0.00185927,94136.0,94110.0,0.212517]
[1740412002135,0.000432,94146.0,94109.0,0.10264569]
[1740412002410,0.014,94138.0,94123.0,0.159365]
[1740412002654,0.007,94138.0,94137.0,0.159342]
[1740412002870,0.002,94136.0,94128.0,0.212476]
[1740412003099,0.005,94136.0,94135.0,0.159345]
[1740412003324,0.005,94136.0,94135.0,0.26199069]
[1740412004488,0.005,94136.0,94135.0,0.07799069]
[1740412004717,0.005,94136.0,94124.0,0.0483]
[1740412004718,0.002432,94146.0,94124.0,0.0483]
[1740412004942,0.000432,94146.0,94128.0,0.159356]
[1740412005174,0.001,94136.0,94129.0,0.26200069]
[1740412005403,0.000432,94146.0,94124.0,0.0483]
[1740412005668,0.000432,94146.0,94126.0,0.15936]
[1740412005906,0.000432,94146.0,94113.0,0.0778]
[1740412005907,0.002,94136.0,94113.0,0.0778]
[1740412006194,0.002,94136.0,94109.0,0.0499]
[1740412006430,0.362442,94144.0,94109.0,0.0499]
[1740412006431,0.10264569,94135.0,94109.0,0.0499]
[1740412006676,0.10450495,94135.0,94109.0,0.0499]
[1740412006884,0.10450495,94135.0,94110.0,0.159387]
[1740412007304,0.11512716,94135.0,94109.0,0.0499]
[1740412007509,0.11512716,94135.0,94109.0,0.209288]
[1740412007722,0.11512716,94135.0,94110.0,0.159386]
[1740412007940,0.11512716,94135.0,94109.0,0.0499]
[1740412008147,0.11512716,94135.0,94110.0,0.159387]
[1740412008324,0.11512716,94135.0,94109.0,0.0499]
[1740412008475,0.11512716,94135.0,94110.0,0.212517]
[1740412008691,0.11612716,94135.0,94110.0,0.159387]
[1740412009115,0.11612716,94135.0,94110.0,0.212516]
[1740412009286,0.01648147,94135.0,94112.0,0.159384]
[1740412009488,0.01462221,94135.0,94123.0,0.159365]
[1740412009785,0.01462221,94135.0,94122.0,0.159367]
[1740412010041,0.159353,94131.0,94109.0,0.0499]
[1740412010364,0.10264569,94130.0,94100.0,4.6548701]
[1740412010541,0.15,94129.0,94100.0,4.6548701]
[1740412010742,0.159366,94123.0,94100.0,4.6548701]
[1740412010941,0.159364,94124.0,94100.0,4.6548701]
[1740412011180,0.159366,94123.0,94100.0,4.6548701]
[1740412011368,0.0018596,94122.0,94100.0,4.6548701]
[1740412011567,0.10450529,94122.0,94109.0,0.000851]
[1740412012069,0.0018596,94125.0,94109.0,0.000851]
[1740412012269,0.10364569,94124.0,94109.0,0.000851]
[1740412012507,0.001,94124.0,94109.0,0.000851]
[1740412012715,0.00185946,94128.0,94109.0,0.000851]
[1740412012915,0.15936,94126.0,94109.0,0.000851]
[1740412013094,0.00185953,94125.0,94109.0,0.000851]
[1740412013295,0.159368,94122.0,94109.0,0.000851]
[1740412013491,0.10264569,94124.0,94109.0,0.000851]
[1740412013699,0.159365,94123.0,94109.0,0.000851]
[1740412014160,0.10264569,94124.0,94109.0,0.000851]
[1740412014368,0.15185955,94123.0,94109.0,0.000851]
[1740412014565,0.159372,94120.0,94109.0,0.000851]
[1740412014744,0.15,94119.0,94109.0,0.000851]
[1740412015087,0.25450532,94119.0,94109.0,0.000851]
[1740412015273,0.15,94117.0,94109.0,0.000851]
[1740412016469,0.30980873,94117.0,94109.0,0.000851]
[1740412016649,0.15,94114.0,94109.0,0.000851]
[1740412016851,0.309387,94110.0,94109.0,0.000851]
[1740412017176,0.42657354,94110.0,94109.0,0.000851]
[1740412017382,0.42657354,94110.0,94100.0,4.6548701]
[1740412017383,0.78727035,94110.0,94100.0,4.6548701]
[1740412017583,0.00043173,94117.0,94100.0,4.6548701]
[1740412017782,0.10307742,94117.0,94100.0,4.6548701]
[1740412018000,0.01454085,94115.0,94100.0,4.6548701]
[1740412018185,0.01454085,94113.0,94100.0,4.6548701]
[1740412018386,0.159403,94101.0,94100.0,4.6548701]
[1740412018585,0.27658954,94101.0,94100.0,4.6548701]
[1740412018822,0.42658954,94101.0,94100.0,4.6548701]
[1740412019077,0.50778954,94101.0,94100.0,4.6548701]
[1740412019266,0.5541659,94101.0,94100.0,4.6548701]
[1740412019474,0.8800659,94101.0,94100.0,4.6548701]
[1740412019604,0.8850659,94101.0,94100.0,4.65477942]
[1740412019818,0.8900659,94101.0,94100.0,4.65477942]
[1740412020022,0.83868954,94101.0,94100.0,4.65477942]
[1740412020471,0.84468954,94101.0,94100.0,4.65477942]
[1740412020680,0.85568954,94101.0,94100.0,4.65477942]
[1740412020890,0.83968954,94101.0,94100.0,4.65477942]
[1740412021150,0.84668954,94101.0,94100.0,4.65477942]
[1740412021520,0.84068954,94101.0,94100.0,4.65477942]
[1740412021702,0.83368954,94101.0,94100.0,4.65477942]
[1740412021917,0.83968954,94101.0,94100.0,4.65477942]
[1740412022119,0.83968954,94101.0,94100.0,4.63652725]
[1740412022120,0.84668954,94101.0,94100.0,4.63652725]
[1740412022302,0.85768954,94101.0,94100.0,4.63652725]
[1740412022523,0.85768954,94101.0,94100.0,4.58330944]
[1740412022990,0.85768954,94101.0,94100.0,4.0508422]
[1740412022991,0.68728654,94101.0,94100.0,4.0508422]
[1740412023191,0.59154569,94101.0,94100.0,4.0508422]
[1740412023597,0.75094869,94101.0,94100.0,4.0508422]
[1740412023745,0.86183781,94101.0,94100.0,4.0473932]
[1740412023960,0.76548954,94101.0,94100.0,4.0473932]
[1740412024787,0.76548954,94101.0,94100.0,4.0474332]
[1740412025051,0.4889,94101.0,94100.0,4.0404332]
[1740412025440,0.75094869,94101.0,94100.0,4.0404332]
[1740412025861,0.76548954,94101.0,94100.0,4.0404332]
[1740412026066,0.75848954,94101.0,94100.0,4.0404332]
[1740412026339,0.75948954,94101.0,94100.0,4.0404332]
[1740412026543,0.74894869,94101.0,94100.0,4.0404332]
[1740412026901,0.74494869,94101.0,94100.0,4.0404332]
[1740412027109,0.76548954,94101.0,94100.0,4.0404332]
[1740412027329,0.86813523,94101.0,94100.0,4.0404332]
[1740412027706,0.86113523,94101.0,94100.0,4.0404332]
[1740412027907,0.86813523,94101.0,94100.0,4.0404332]
[1740412028315,0.86213523,94101.0,94100.0,3.9669832]
[1740412028502,0.75948954,94101.0,94100.0,3.9669832]
[1740412028704,0.76448954,94101.0,94100.0,3.9669832]
[1740412028904,0.75948954,94101.0,94100.0,3.9669832]
[1740412029349,0.76548954,94101.0,94100.0,3.9669832]
[1740412029508,0.86813523,94101.0,94100.0,3.9669832]
[1740412029720,0.76548954,94101.0,94100.0,3.9669832]
[1740412031134,0.44154569,94101.0,94100.0,3.9669832]
[1740412031573,0.013,94101.0,94100.0,3.9669832]
[1740412032354,0.006,94101.0,94100.0,3.9669832]
[1740412032544,0.15,94102.0,94100.0,3.9669832]
[1740412032791,0.01,94101.0,94100.0,3.9669832]
[1740412034135,0.003,94101.0,94100.0,3.9669832]
[1740412034350,0.008,94101.0,94100.0,3.9669832]
[1740412034579,0.27518654,94101.0,94100.0,3.9669832]
[1740412034795,0.76048954,94101.0,94100.0,3.9669832]
[1740412035584,0.84198954,94101.0,94100.0,3.9669832]
[1740412036330,0.84369214,94101.0,94100.0,3.9669832]
[1740412036969,0.84369214,94101.0,94100.0,3.96028009]
[1740412037184,0.93179698,94101.0,94100.0,3.96028009]
[1740412037642,0.93179698,94101.0,94100.0,3.86100967]
[1740412037857,0.93179698,94101.0,94100.0,3.80801856]
[1740412038057,0.82915129,94101.0,94100.0,3.80801856]
[1740412038690,0.82115129,94101.0,94100.0,3.80801856]
[1740412038889,0.82715129,94101.0,94100.0,3.80801856]
[1740412039112,0.82815129,94101.0,94100.0,3.80801856]
[1740412039509,0.83415129,94101.0,94100.0,3.80801856]
[1740412039713,0.83147972,94101.0,94100.0,3.80801856]
[1740412040056,0.84947972,94101.0,94100.0,3.80801856]
[1740412040288,0.83547972,94101.0,94100.0,3.80801856]
[1740412040678,0.84847972,94101.0,94100.0,3.80801856]
[1740412040880,0.83747972,94101.0,94100.0,3.80801856]
[1740412041032,0.90991756,94101.0,94100.0,3.79801856]
[1740412041241,0.90658913,94101.0,94100.0,3.79801856]
[1740412041441,0.91358913,94101.0,94100.0,3.79801856]
[1740412041847,0.90058913,94101.0,94100.0,3.79801856]
[1740412042048,0.90758913,94101.0,94100.0,3.79801856]
[1740412042292,0.91458913,94101.0,94100.0,3.79401856]
[1740412042926,0.90758913,94101.0,94100.0,3.40800464]
[1740412043136,0.96802998,94101.0,94100.0,3.10244884]
[1740412043336,0.98402963,94101.0,94100.0,0.97110001]
[1740412043537,0.98102963,94101.0,94100.0,0.69927001]
[1740412043761,0.98102963,94101.0,94100.0,0.16671095]
[1740412043938,0.99502963,94101.0,94100.0,0.16671095]
[1740412044180,0.99502963,94101.0,94091.0,0.00110582]
[1740412044181,0.309418,94092.0,94091.0,0.00110582]
[1740412044360,0.48551489,94092.0,94091.0,0.00110582]
[1740412044739,0.56751489,94092.0,94091.0,0.00110582]
[1740412044903,0.58205574,94092.0,94091.0,0.00110582]
[1740412045327,0.58205574,94092.0,94085.0,0.0021336]
[1740412045328,0.309428,94086.0,94085.0,0.0021336]
[1740412045536,0.73797369,94086.0,94085.0,0.0021336]
[1740412046132,0.74130258,94086.0,94085.0,0.0021336]
[1740412046679,0.75234573,94086.0,94085.0,0.0021336]
[1740412047082,0.75234573,94086.0,94085.0,1e-08]
[1740412047475,0.74134573,94086.0,94085.0,1e-08]
[1740412047701,0.74901684,94086.0,94085.0,1e-08]
[1740412047969,0.73801684,94086.0,94085.0,1e-08]
[1740412048180,0.85166253,94086.0,94085.0,1e-08]
[1740412048401,0.85166253,94086.0,94067.0,0.03235487]
[1740412048402,0.15945,94073.0,94067.0,0.03235487]
[1740412048613,0.66989569,94073.0,94067.0,0.03235487]
[1740412049268,0.42854569,94073.0,94067.0,0.03235487]
[1740412049479,0.58799569,94073.0,94067.0,0.03235487]
[1740412050586,0.59863257,94073.0,94067.0,0.03235487]
[1740412051422,0.70101503,94073.0,94067.0,0.03235487]
[1740412051866,0.70701503,94073.0,94067.0,0.03235487]
[1740412052502,0.309454,94071.0,94070.0,0.23668204]
[1740412052710,0.309454,94071.0,94040.0,0.0008506]
[1740412052711,0.23261365,94068.0,94060.0,0.22987385]
[1740412052949,0.41211569,94061.0,94060.0,0.22987385]
[1740412053164,0.52835619,94061.0,94060.0,0.21487385]
[1740412053375,0.159504,94041.0,94040.0,0.0008506]
[1740412053589,0.59904969,94041.0,94040.0,0.0008506]
[1740412054439,0.26214969,94041.0,94040.0,0.0008506]
[1740412054654,0.27402089,94041.0,94040.0,0.0008506]
[1740412054868,0.1109595,94041.0,94040.0,0.0008506]
[1740412055079,0.11282093,94041.0,94040.0,0.0008506]
[1740412055293,0.27232493,94041.0,94040.0,0.0008506]
[1740412055549,0.1109595,94041.0,94040.0,0.0008506]
[1740412055764,0.10493816,94041.0,94040.0,0.0008506]
[1740412055977,0.11622503,94041.0,94040.0,0.0008506]
[1740412056196,0.10493816,94041.0,94040.0,0.0008506]
[1740412056405,0.11359582,94041.0,94040.0,0.0008506]
[1740412056621,0.27309982,94041.0,94040.0,0.0008506]
[1740412056865,0.27123855,94041.0,94040.0,0.0008506]
[1740412057305,0.72223855,94041.0,94040.0,0.0008506]
[1740412057530,0.67483855,94041.0,94040.0,0.0008506]
[1740412057737,0.43763455,94041.0,94040.0,0.0008506]
[1740412058401,0.52262385,94041.0,94040.0,0.0008506]
[1740412058809,0.43763455,94041.0,94040.0,0.0008506]
[1740412059015,0.43763455,94041.0,94040.0,0.00075988]
[1740412059217,0.43230676,94041.0,94040.0,0.00075988]
[1740412059642,0.43730676,94041.0,94040.0,0.00075988]
[1740412060047,0.51904769,94041.0,94040.0,0.00075988]
[1740412060252,0.60214769,94041.0,94040.0,0.00075988]
[1740412060454,0.43730676,94041.0,94040.0,0.00075988]
[1740412062282,0.44430676,94041.0,94040.0,0.00075988]
[1740412062490,0.44963479,94041.0,94040.0,0.00075988]
[1740412062962,0.44963479,94041.0,94028.0,0.0464557]
[1740412063237,0.15951,94038.0,94028.0,0.0464557]
[1740412063434,0.16490762,94037.0,94028.0,0.0464557]
[1740412063667,0.212686,94035.0,94028.0,0.0464557]
[1740412063870,0.10450706,94034.0,94028.0,0.0464557]
[1740412064286,0.10450706,94034.0,94028.0,0.02247725]